{"text_format":"3","workbook":"xlsx","n_sheets":3,"sheets":["チェックシート","確認事項","確認内容"],"not_rendered":{"defined_names":3},"read":"whole","date_system":"1900"}

{"sheet":"チェックシート","index":0,"n_rows":26,"n_cols":16,"rows_kept":26,"merged":[[1,0,1,6],[2,0,2,6],[4,0,4,2],[4,5,5,6],[5,0,5,2],[6,0,6,2],[7,0,7,2],[9,0,9,2],[10,0,10,5],[13,0,13,5],[21,0,21,5]]}
["別掲１"]
["申請書類チェックシート（国産青果物安定供給体制構築事業）"]
["※申請書類を送付する際に、このチェックリストで書類のチェックを行い、別掲２の応募申請書及び関係書類と併せて提出してください。"]
[]
["メニュー名：",null,null,"サプライチェーン連携強化推進事業",null,{"$f":"IF(D5=\"\",\"メニュー名を入力してください。\",IF(D6=\"\",\"都道府県・市町村名を入力してください。\",IF(D7=\"\",\"事業実施主体区分を入力してください。\",IF(D8=\"\",\"事業実施主体名を入力してください。\",IF(J11=\"NG\",IF(K11=\"NG\",\"「第１　事業実施主体」のグレーのセルのチェックは不要です。\",\"「第１　事業実施主体」のチェック欄を確認してください。\"),IF(J15=\"NG\",IF(K15=\"NG\",\"「第２　事業内容」のグレーのセルのチェックは不要です。\",\"「第２　事業内容」のチェック欄を確認してください。\"),IF(J23=\"NG\",IF(K23=\"NG\",\"「第３　補助要件・成果目標等」のグレーのセルのチェックは不要です。\",\"「第３　成果目標・加算ポイント等」のチェック欄を確認してください。\"),\"\")))))))","v":"都道府県・市町村名を入力してください。"}]
["都道府県・市町村名："]
["事業実施主体区分："]
["事業実施主体名："]
[]
["区　分",null,null,"確認内容","確認資料の例","チェック","確認に使用した資料（ファイル名を記載）"]
["第１　事業実施主体",{"$nulls":7},{"$f":"COUNTIF(I12:I14,TRUE)","v":0},{"$f":"IF(COUNTIF($J$12:$J$14,\"NG\")=0,\"OK\",\"NG\")","v":"NG"},{"$f":"IF(COUNTIF(K12:K14,\"○NG\")>=1,\"NG\",\"OK\")","v":"OK"},null,"メニュー名",null,null,"事業実施主体区分"]
[null,1,{"$f":"IFERROR(VLOOKUP($B15&$D$5&\"事業実施主体\",確認内容!$A:$E,3,FALSE),\"-\")","v":"共通"},{"$f":"IFERROR(VLOOKUP($B12&$D$5&\"事業実施主体\",確認内容!$A:$E,4,FALSE),\"-\")","v":"受益農業従事者が５名以上である。"},{"$f":"IFERROR(VLOOKUP($B15&$D$5&\"事業実施主体\",確認内容!$A:$E,5,FALSE),\"-\")","v":"構成員名簿など"},{"$nulls":3},false,{"$f":"IF(I12=TRUE,\"OK\",\"NG\")","v":"NG"},{"$f":"IF(C12=\"-\",IF(I12=TRUE,\"○NG\",\"\"),\"\")","v":""}]
[null,2,{"$f":"IFERROR(VLOOKUP($B16&$D$5&\"事業実施主体\",確認内容!$A:$E,3,FALSE),\"-\")","v":"共通"},{"$f":"IFERROR(VLOOKUP($B13&$D$5&\"事業実施主体\",確認内容!$A:$E,4,FALSE),\"-\")","v":"事業の実施及び会計手続を適正に行える体制である。"},{"$f":"IFERROR(VLOOKUP($B16&$D$5&\"事業実施主体\",確認内容!$A:$E,5,FALSE),\"-\")","v":"定款及び予算書など"},{"$nulls":3},false,{"$f":"IF(I13=TRUE,\"OK\",\"NG\")","v":"NG"},{"$f":"IF(C13=\"-\",IF(I13=TRUE,\"○NG\",\"\"),\"\")","v":""},null,"サプライチェーン連携強化推進事業",null,1,"都道府県"]
["第２　事業内容",{"$nulls":7},false,{"$f":"IF(#REF!=$D$7,IF(I14=TRUE,\"OK\",\"NG\"),IF(I14=FALSE,\"OK\",\"NG\"))","v":{"$error":"#REF!"}},{"$f":"IF(#REF!=\"-\",IF(I14=TRUE,\"○NG\",\"\"),\"\")","v":{"$error":"#REF!"}},null,"流通体制合理化実証事業",null,2,"市町村"]
[null,1,{"$f":"IFERROR(VLOOKUP($B15&$D$5&\"事業内容\",確認内容!$A:$E,3,FALSE),\"-\")","v":"共通"},{"$f":"IFERROR(VLOOKUP($B15&$D$5&\"事業内容\",確認内容!$A:$E,4,FALSE),\"-\")","v":"複数産地と実需者等とのデータ連携による加工・業務用野菜のサプライチェーンの連携強化に向けた取組である。"},{"$f":"IFERROR(VLOOKUP($B15&$D$5&\"事業内容\",確認内容!$A:$E,5,FALSE),\"-\")","v":"事業実施計画書"},{"$nulls":3},{"$f":"COUNTIF(I16:I22,TRUE)","v":0},{"$f":"IF(COUNTIF(J16:J22,\"NG\")=0,\"OK\",\"NG\")","v":"NG"},{"$f":"IF(COUNTIF(K16:K22,\"○NG\")>=1,\"NG\",\"OK\")","v":"OK"},{"$nulls":3},3,"公社"]
[null,2,{"$f":"IFERROR(VLOOKUP($B16&$D$5&\"事業内容\",確認内容!$A:$E,3,FALSE),\"-\")","v":"共通"},{"$f":"IFERROR(VLOOKUP($B16&$D$5&\"事業内容\",確認内容!$A:$E,4,FALSE),\"-\")","v":"事業対象品目は野菜（かんしょ、ばれいしょ除く）又は果樹である。"},{"$f":"IFERROR(VLOOKUP($B16&$D$5&\"事業内容\",確認内容!$A:$E,5,FALSE),\"-\")","v":"事業実施計画書"},{"$nulls":3},false,{"$f":"IF(C15=\"-\",IF(I16=FALSE,\"OK\",\"NG\"),IF(I16=TRUE,\"OK\",\"NG\"))","v":"NG"},{"$f":"IF(C15=\"-\",IF(I16=TRUE,\"○NG\",\"\"),\"\")","v":""},{"$nulls":3},4,"農業協同組合連合会"]
[null,3,{"$f":"IFERROR(VLOOKUP($B17&$D$5&\"事業内容\",確認内容!$A:$E,3,FALSE),\"-\")","v":"共通"},{"$f":"IFERROR(VLOOKUP($B17&$D$5&\"事業内容\",確認内容!$A:$E,4,FALSE),\"-\")","v":"目標年度は適切である（事業終了年度の翌々年度）。"},{"$f":"IFERROR(VLOOKUP($B17&$D$5&\"事業内容\",確認内容!$A:$E,5,FALSE),\"-\")","v":"事業実施計画書"},{"$nulls":3},false,"NG","",{"$nulls":3},5,"農業協同組合"]
[null,4,{"$f":"IFERROR(VLOOKUP($B18&$D$5&\"事業内容\",確認内容!$A:$E,3,FALSE),\"-\")","v":"補助金額"},{"$f":"IFERROR(VLOOKUP($B18&$D$5&\"事業内容\",確認内容!$A:$E,4,FALSE),\"-\")","v":"国庫補助金額は千円単位（未満切り捨て）で計上している。"},{"$f":"IFERROR(VLOOKUP($B18&$D$5&\"事業内容\",確認内容!$A:$E,5,FALSE),\"-\")","v":"事業実施計画書"},{"$nulls":3},false,"NG","",{"$nulls":3},6,"農業者の組織する団体"]
[null,5,{"$f":"IFERROR(VLOOKUP($B19&$D$5&\"事業内容\",確認内容!$A:$E,3,FALSE),\"-\")","v":"対象経費"},{"$f":"IFERROR(VLOOKUP($B19&$D$5&\"事業内容\",確認内容!$A:$E,4,FALSE),\"-\")","v":"補助対象外の経費が含まれていない。"},{"$f":"IFERROR(VLOOKUP($B19&$D$5&\"事業内容\",確認内容!$A:$E,5,FALSE),\"-\")","v":"見積書、カタログなど"},{"$nulls":3},false,"NG","",{"$nulls":3},7,"民間事業者"]
[null,6,{"$f":"IFERROR(VLOOKUP($B20&$D$5&\"事業内容\",確認内容!$A:$E,3,FALSE),\"-\")","v":"システム・機械・設備"},{"$f":"IFERROR(VLOOKUP($B20&$D$5&\"事業内容\",確認内容!$A:$E,4,FALSE),\"-\")","v":"導入するシステム・機械・設備等の規模は適切である。"},{"$f":"IFERROR(VLOOKUP($B20&$D$5&\"事業内容\",確認内容!$A:$E,5,FALSE),\"-\")","v":"事業実施計画書、\n規模決定根拠資料など"},{"$nulls":3},false,"NG","",{"$nulls":3},8,"特認団体"]
[null,7,{"$f":"IFERROR(VLOOKUP($B21&$D$5&\"事業内容\",確認内容!$A:$E,3,FALSE),\"-\")","v":"リース契約"},{"$f":"IFERROR(VLOOKUP($B21&$D$5&\"事業内容\",確認内容!$A:$E,4,FALSE),\"-\")","v":"「リース契約の条件」の要件を満たしている（要綱に定める算定式により金額を計算、リース期間は１年以上耐用年数以内、他の補助金を受けていない等）。"},{"$f":"IFERROR(VLOOKUP($B21&$D$5&\"事業内容\",確認内容!$A:$E,5,FALSE),\"-\")","v":"事業実施計画書"},{"$nulls":3},false,"NG","",{"$nulls":3},9,"コンソーシアム"]
["第３　成果目標・加算ポイント等",{"$nulls":7},false,"NG","",{"$nulls":4},{"$f":"\"\"","v":""}]
[null,1,{"$f":"IFERROR(VLOOKUP($B23&$D$5&\"補助要件等\",確認内容!$A:$E,3,FALSE),\"-\")","v":"成果目標"},{"$f":"IFERROR(VLOOKUP($B23&$D$5&\"補助要件等\",確認内容!$A:$E,4,FALSE),\"-\")","v":"成果目標の設定は適切である。"},{"$f":"IFERROR(VLOOKUP($B23&$D$5&\"補助要件等\",確認内容!$A:$E,5,FALSE),\"-\")","v":"現状値及び目標値\n設定根拠資料"},{"$nulls":3},{"$f":"COUNTIF(I24:I25,TRUE)","v":0},{"$f":"IF(COUNTIF(J24:J25,\"NG\")=0,\"OK\",\"NG\")","v":"NG"},{"$f":"IF(COUNTIF(K24:K25,\"○NG\")>=1,\"NG\",\"OK\")","v":"OK"}]
[null,2,{"$f":"IFERROR(VLOOKUP($B24&$D$5&\"補助要件等\",確認内容!$A:$E,3,FALSE),\"-\")","v":"加算ポイント"},{"$f":"IFERROR(VLOOKUP($B24&$D$5&\"補助要件等\",確認内容!$A:$E,4,FALSE),\"-\")","v":"加算ポイントの設定は適切である。"},{"$f":"IFERROR(VLOOKUP($B24&$D$5&\"補助要件等\",確認内容!$A:$E,5,FALSE),\"-\")","v":"調査様式、事業実施\n計画書、確認資料"},{"$nulls":3},false,{"$f":"IF(C23=\"-\",IF(I24=FALSE,\"OK\",\"NG\"),IF(I24=TRUE,\"OK\",\"NG\"))","v":"NG"},{"$f":"IF(C23=\"-\",IF(I24=TRUE,\"○NG\",\"\"),\"\")","v":""}]
[null,3,{"$f":"IFERROR(VLOOKUP($B25&$D$5&\"補助要件等\",確認内容!$A:$E,3,FALSE),\"-\")","v":"クロスコンプライアンス"},{"$f":"IFERROR(VLOOKUP($B25&$D$5&\"補助要件等\",確認内容!$A:$E,4,FALSE),\"-\")","v":"環境負荷低減の取組を行う。"},{"$f":"IFERROR(VLOOKUP($B25&$D$5&\"補助要件等\",確認内容!$A:$E,5,FALSE),\"-\")","v":"クロスコンプライアンスチェックシート"},{"$nulls":3},false,{"$f":"IF(C24=\"-\",IF(I25=FALSE,\"OK\",\"NG\"),IF(I25=TRUE,\"OK\",\"NG\"))","v":"NG"},{"$f":"IF(C24=\"-\",IF(I25=TRUE,\"○NG\",\"\"),\"\")","v":""}]
[{"$nulls":8},false,{"$f":"IF(C25=\"-\",IF(I26=FALSE,\"OK\",\"NG\"),IF(I26=TRUE,\"OK\",\"NG\"))","v":"NG"},{"$f":"IF(C25=\"-\",IF(I26=TRUE,\"○NG\",\"\"),\"\")","v":""}]

{"sheet":"確認事項","index":1,"n_rows":35,"n_cols":6,"rows_kept":35,"hidden":true,"merged":[[0,0,0,4],[1,0,1,1],[2,0,2,1]]}
["産地生産基盤パワーアップ事業のち国産シェア拡大対策（園芸作物等）確認事項"]
[null,null,"：確認済み","確認者：","農林水産省農産局園芸作物課　勝野、今岡"]
[null,null,"：再確認","回答者："]
[]
["番号","都道府県","事業実施主体","確認事項","回答","修正の\n有無"]
[1,null,null,"\n【関連資料】"]
[2,null,null,"\n【関連資料】"]
[3,null,null,"\n【関連資料】"]
[4,null,null,"\n【関連資料】"]
[5,null,null,"\n【関連資料】"]
[6,null,null,"\n【関連資料】"]
[7,null,null,"\n【関連資料】"]
[8,null,null,"\n【関連資料】"]
[9,null,null,"\n【関連資料】"]
[10,null,null,"\n【関連資料】"]
[11,null,null,"\n【関連資料】"]
[12,null,null,"\n【関連資料】"]
[13,null,null,"\n【関連資料】"]
[14,null,null,"\n【関連資料】"]
[15,null,null,"\n【関連資料】"]
[16,null,null,"\n【関連資料】"]
[17,null,null,"\n【関連資料】"]
[18,null,null,"\n【関連資料】"]
[19,null,null,"\n【関連資料】"]
[20,null,null,"\n【関連資料】"]
[21,null,null,"\n【関連資料】"]
[22,null,null,"\n【関連資料】"]
[23,null,null,"\n【関連資料】"]
[24,null,null,"\n【関連資料】"]
[25,null,null,"\n【関連資料】"]
[26,null,null,"\n【関連資料】"]
[27,null,null,"\n【関連資料】"]
[28,null,null,"\n【関連資料】"]
[29,null,null,"\n【関連資料】"]
[30,null,null,"\n【関連資料】"]

{"sheet":"確認内容","index":2,"n_rows":31,"n_cols":5,"rows_kept":31}
[null,"第１　事業実施主体"]
[{"$f":"B2&\"サプライチェーン連携強化推進事業事業実施主体\"","v":"1サプライチェーン連携強化推進事業事業実施主体"},1,"共通","受益農業従事者が５名以上である。","構成員名簿など"]
[{"$f":"B3&\"サプライチェーン連携強化推進事業事業実施主体\"","v":"2サプライチェーン連携強化推進事業事業実施主体"},2,"共通","事業の実施及び会計手続を適正に行える体制である。","定款及び予算書など"]
[null,"第２　事業内容"]
[{"$f":"B5&\"サプライチェーン連携強化推進事業事業内容\"","v":"1サプライチェーン連携強化推進事業事業内容"},1,"共通","複数産地と実需者等とのデータ連携による加工・業務用野菜のサプライチェーンの連携強化に向けた取組である。","事業実施計画書"]
["2サプライチェーン連携強化推進事業事業内容",2,"共通","事業対象品目は野菜（かんしょ、ばれいしょ除く）又は果樹である。","事業実施計画書"]
["3サプライチェーン連携強化推進事業事業内容",3,"共通","目標年度は適切である（事業終了年度の翌々年度）。","事業実施計画書"]
["4サプライチェーン連携強化推進事業事業内容",4,"補助金額","国庫補助金額は千円単位（未満切り捨て）で計上している。","事業実施計画書"]
["5サプライチェーン連携強化推進事業事業内容",5,"対象経費","補助対象外の経費が含まれていない。","見積書、カタログなど"]
["6サプライチェーン連携強化推進事業事業内容",6,"システム・機械・設備","導入するシステム・機械・設備等の規模は適切である。","事業実施計画書、\n規模決定根拠資料など"]
["7サプライチェーン連携強化推進事業事業内容",7,"リース契約","「リース契約の条件」の要件を満たしている（要綱に定める算定式により金額を計算、リース期間は１年以上耐用年数以内、他の補助金を受けていない等）。","事業実施計画書"]
[null,"第３　成果目標・加算ポイント等"]
[{"$f":"B13&\"サプライチェーン連携強化推進事業補助要件等\"","v":"1サプライチェーン連携強化推進事業補助要件等"},1,"成果目標","成果目標の設定は適切である。","現状値及び目標値\n設定根拠資料"]
[{"$f":"B14&\"サプライチェーン連携強化推進事業補助要件等\"","v":"2サプライチェーン連携強化推進事業補助要件等"},2,"加算ポイント","加算ポイントの設定は適切である。","調査様式、事業実施\n計画書、確認資料"]
[{"$f":"B15&\"サプライチェーン連携強化推進事業補助要件等\"","v":"3サプライチェーン連携強化推進事業補助要件等"},3,"クロスコンプライアンス","環境負荷低減の取組を行う。","クロスコンプライアンスチェックシート"]
[]
[null,"第１　事業実施主体"]
[{"$f":"B18&\"流通体制合理化実証事業事業実施主体\"","v":"1流通体制合理化実証事業事業実施主体"},1,"共通","受益農業従事者が５名以上である。","構成員名簿など"]
[{"$f":"B19&\"流通体制合理化実証事業事業実施主体\"","v":"2流通体制合理化実証事業事業実施主体"},2,"共通","事業の実施及び会計手続を適正に行える体制である。","定款及び予算書など"]
[null,"第２　事業内容"]
[{"$f":"B21&\"流通体制合理化実証事業事業内容\"","v":"1流通体制合理化実証事業事業内容"},1,"共通","出荷規格の簡素化や標準パレット導入に向けた実証の取組である。","事業実施計画書"]
["2流通体制合理化実証事業事業内容",2,"共通","事業対象品目は野菜（かんしょ、ばれいしょ除く）又は果樹である。","事業実施計画書"]
["3流通体制合理化実証事業事業内容",3,"共通","目標年度は適切である（事業終了年度の翌々年度）。","事業実施計画書"]
["4流通体制合理化実証事業事業内容",4,"補助金額","国庫補助金額は千円単位（未満切り捨て）で計上している。","事業実施計画書"]
["5流通体制合理化実証事業事業内容",5,"対象経費","補助対象外の経費が含まれていない。","見積書、カタログなど"]
["6流通体制合理化実証事業事業内容",6,"システム・機械・設備","導入するシステム・機器・設備等の規模は適切である。","事業実施計画書、\n規模決定根拠資料など"]
["7流通体制合理化実証事業事業内容",7,"リース契約","「リース契約の条件」の要件を満たしている（要綱に定める算定式により金額を計算、リース期間は１年以上耐用年数以内、他の補助金を受けていない等）。","事業実施計画書"]
[null,"第３　成果目標・加算ポイント等"]
[{"$f":"B29&\"流通体制合理化実証事業補助要件等\"","v":"1流通体制合理化実証事業補助要件等"},1,"成果目標","成果目標の設定は適切である。","現状値及び目標値\n設定根拠資料"]
[{"$f":"B30&\"流通体制合理化実証事業補助要件等\"","v":"2流通体制合理化実証事業補助要件等"},2,"加算ポイント","加算ポイントの設定は適切である。","調査様式、事業実施\n計画書、確認資料"]
[{"$f":"B31&\"流通体制合理化実証事業補助要件等\"","v":"3流通体制合理化実証事業補助要件等"},3,"クロスコンプライアンス","環境負荷低減の取組を行う。","クロスコンプライアンスチェックシート"]